[Event "Titled Tuesday Blitz January 10 Early 2023"]
[White "Sadubayev, Airat"]
[Black "Bagwe Gaurang"]
[WhiteFideId "13713264"]
[BlackFideId "45039895"]
[WhiteElo "2320"]
[BlackElo "2067"]
[Result "1/2-1/2"]
[Round "07"]
[TimeControl "180+2"]
[Date "2023.01.10"]
[WhiteClock "0:00:03"]
[BlackClock "0:00:09"]

1. d4 {[%clk 0:02:59]}  d5 {[%clk 0:02:55]} 2. c4 {[%clk 0:02:59]}  c6 {[%clk 0:02:51]} 3. Nc3 {[%clk 0:02:58]}  e6 {[%clk 0:02:51]} 4. Nf3 {[%clk 0:02:56]}  Nf6 {[%clk 0:02:50]} 5. e3 {[%clk 0:02:55]}  Nbd7 {[%clk 0:02:50]} 6. Qc2 {[%clk 0:02:56]}  Bd6 {[%clk 0:02:50]} 7. b3 {[%clk 0:02:56]}  O-O {[%clk 0:02:49]} 8. Be2 {[%clk 0:02:55]}  b6 {[%clk 0:02:49]} 9. O-O {[%clk 0:02:54]}  Bb7 {[%clk 0:02:50]} 10. Bb2 {[%clk 0:02:52]}  c5 {[%clk 0:02:50]} 11. cxd5 {[%clk 0:02:46]}  exd5 {[%clk 0:02:49]} 12. Rad1 {[%clk 0:02:41]}  Rc8 {[%clk 0:02:48]} 13. Qb1 {[%clk 0:02:37]}  Qe7 {[%clk 0:02:46]} 14. Rfe1 {[%clk 0:02:16]}  Rfd8 {[%clk 0:02:43]} 15. Bf1 {[%clk 0:02:13]}  Nf8 {[%clk 0:02:41]} 16. g3 {[%clk 0:01:56]}  Ne4 {[%clk 0:02:36]} 17. dxc5 {[%clk 0:01:51]}  Bxc5 {[%clk 0:02:36]} 18. Nb5 {[%clk 0:01:41]}  Bb4 {[%clk 0:02:15]} 19. Re2 {[%clk 0:01:38]}  Ba6 {[%clk 0:02:15]} 20. Rc2 {[%clk 0:01:36]}  Ne6 {[%clk 0:02:12]} 21. a3 {[%clk 0:01:27]}  Bxb5 {[%clk 0:02:08]} 22. axb4 {[%clk 0:01:25]}  Bxf1 {[%clk 0:02:08]} 23. Rxf1 {[%clk 0:01:23]}  Qxb4 {[%clk 0:02:08]} 24. Rfc1 {[%clk 0:01:18]}  Rxc2 {[%clk 0:02:04]} 25. Qxc2 {[%clk 0:01:19]}  h5 {[%clk 0:02:02]} 26. Ne5 {[%clk 0:01:14]}  Rf8 {[%clk 0:01:42]} 27. Ra1 {[%clk 0:01:06]}  Ra8 {[%clk 0:01:31]} 28. Nc6 {[%clk 0:01:02]}  Qd2 {[%clk 0:01:28]} 29. Qxd2 {[%clk 0:00:46]}  Nxd2 {[%clk 0:01:29]} 30. Rxa7 {[%clk 0:00:46]}  Rxa7 {[%clk 0:01:28]} 31. Nxa7 {[%clk 0:00:47]}  Nxb3 {[%clk 0:01:27]} 32. Nc8 {[%clk 0:00:47]}  b5 {[%clk 0:01:24]} 33. Ne7+ {[%clk 0:00:47]}  Kf8 {[%clk 0:01:14]} 34. Nxd5 {[%clk 0:00:48]}  Nec5 {[%clk 0:01:14]} 35. Ba3 {[%clk 0:00:47]}  Kg8 {[%clk 0:01:05]} 36. Nc7 {[%clk 0:00:42]}  Ne4 {[%clk 0:00:50]} 37. Bb4 {[%clk 0:00:32]}  h4 {[%clk 0:00:42]} 38. gxh4 {[%clk 0:00:31]}  Nc1 {[%clk 0:00:38]} 39. f3 {[%clk 0:00:27]}  Nd3 {[%clk 0:00:38]} 40. fxe4 {[%clk 0:00:22]}  Nxb4 {[%clk 0:00:38]} 41. Nxb5 {[%clk 0:00:23]}  Kh7 {[%clk 0:00:35]} 42. Nd6 {[%clk 0:00:21]}  f6 {[%clk 0:00:35]} 43. Nc4 {[%clk 0:00:20]}  Nd3 {[%clk 0:00:34]} 44. Kg2 {[%clk 0:00:19]}  Kg6 {[%clk 0:00:34]} 45. Kg3 {[%clk 0:00:19]}  Kh5 {[%clk 0:00:34]} 46. Nd6 {[%clk 0:00:18]}  Nc5 {[%clk 0:00:32]} 47. h3 {[%clk 0:00:15]}  g6 {[%clk 0:00:31]} 48. Kh2 {[%clk 0:00:09]}  Kxh4 {[%clk 0:00:30]} 49. Kg2 {[%clk 0:00:10]}  g5 {[%clk 0:00:26]} 50. Nf5+ {[%clk 0:00:08]}  Kh5 {[%clk 0:00:25]} 51. Kf3 {[%clk 0:00:09]}  Nd3 {[%clk 0:00:24]} 52. Ne7 {[%clk 0:00:07]}  Ne5+ {[%clk 0:00:24]} 53. Kg3 {[%clk 0:00:08]}  Nd3 {[%clk 0:00:23]} 54. Nd5 {[%clk 0:00:07]}  Kg6 {[%clk 0:00:23]} 55. Ne7+ {[%clk 0:00:07]}  Kh5 {[%clk 0:00:23]} 56. Nc6 {[%clk 0:00:08]}  Kg6 {[%clk 0:00:21]} 57. Kf3 {[%clk 0:00:06]}  Kh5 {[%clk 0:00:15]} 58. Kg2 {[%clk 0:00:05]}  Kh4 {[%clk 0:00:15]} 59. Ne7 {[%clk 0:00:05]}  Ne1+ {[%clk 0:00:14]} 60. Kf2 {[%clk 0:00:04]}  Nd3+ {[%clk 0:00:15]} 61. Kg2 {[%clk 0:00:04]}  Ne1+ {[%clk 0:00:14]} 62. Kf1 {[%clk 0:00:04]}  Nc2 {[%clk 0:00:14]} 63. Nf5+ {[%clk 0:00:01]}  Kxh3 {[%clk 0:00:13]} 64. Ke2 {[%clk 0:00:02]}  g4 {[%clk 0:00:13]} 65. Kd3 {[%clk 0:00:01]}  Nb4+ {[%clk 0:00:12]} 66. Kc4 {[%clk 0:00:02]}  Nc2 {[%clk 0:00:12]} 67. Kd3 {[%clk 0:00:02]}  Ne1+ {[%clk 0:00:12]} 68. Kd4 {[%clk 0:00:02]}  Nf3+ {[%clk 0:00:10]} 69. Kd5 {[%clk 0:00:03]}  Kg2 {[%clk 0:00:10]} 70. Ke6 {[%clk 0:00:03]}  Ng5+ {[%clk 0:00:10]} 71. Kxf6 {[%clk 0:00:03]}  Nxe4+ {[%clk 0:00:10]} 72. Ke5 {[%clk 0:00:03]}  Kf3 {[%clk 0:00:10]} 73. Nh4+ {[%clk 0:00:02]}  Kxe3 {[%clk 0:00:11]} 74. Nf5+ {[%clk 0:00:02]}  Kf3 {[%clk 0:00:11]} 75. Nh4+ {[%clk 0:00:03]}  Ke3 {[%clk 0:00:11]} 76. Nf5+ {[%clk 0:00:03]}  Kd3 {[%clk 0:00:11]} 77. Kf4 {[%clk 0:00:04]}  Nf6 {[%clk 0:00:10]} 78. Nh6 {[%clk 0:00:02]}  g3 {[%clk 0:00:09]} 79. Kxg3 {[%clk 0:00:03]} 1/2-1/2


[Site "https://www.chess.com"]

[Event "Titled Tuesday Blitz January 10 Early 2023"]
[White "Ordekalog"]
[Black "Gaitan, Juan Manuel"]
[BlackFideId "121657"]
[WhiteElo "2635"]
[BlackElo "2328"]
[Result "1-0"]
[Round "07"]
[TimeControl "180+2"]
[Date "2023.01.10"]
[WhiteClock "0:00:02"]
[BlackClock "0:00:14"]

1. e4 {[%clk 0:02:57]}  e5 {[%clk 0:02:58]} 2. Nf3 {[%clk 0:02:56]}  Nf6 {[%clk 0:02:59]} 3. d3 {[%clk 0:02:52]}  Nc6 {[%clk 0:02:58]} 4. Be2 {[%clk 0:02:51]}  h6 {[%clk 0:02:49]} 5. O-O {[%clk 0:02:50]}  g6 {[%clk 0:02:49]} 6. c3 {[%clk 0:02:47]}  Bg7 {[%clk 0:02:49]} 7. Nbd2 {[%clk 0:02:45]}  O-O {[%clk 0:02:48]} 8. d4 {[%clk 0:02:38]}  exd4 {[%clk 0:02:45]} 9. cxd4 {[%clk 0:02:37]}  d5 {[%clk 0:02:45]} 10. e5 {[%clk 0:02:37]}  Ne4 {[%clk 0:02:46]} 11. Bd3 {[%clk 0:02:22]}  Bf5 {[%clk 0:02:44]} 12. Qe2 {[%clk 0:02:19]}  Nxd2 {[%clk 0:02:41]} 13. Bxd2 {[%clk 0:02:17]}  Bg4 {[%clk 0:02:40]} 14. Bc3 {[%clk 0:02:14]}  Qd7 {[%clk 0:02:37]} 15. h3 {[%clk 0:02:12]}  Bf5 {[%clk 0:02:36]} 16. b4 {[%clk 0:02:01]}  Bxd3 {[%clk 0:02:34]} 17. Qxd3 {[%clk 0:02:01]}  a6 {[%clk 0:02:33]} 18. a4 {[%clk 0:02:00]}  Nd8 {[%clk 0:02:33]} 19. b5 {[%clk 0:01:59]}  Ne6 {[%clk 0:02:33]} 20. Bd2 {[%clk 0:01:57]}  Kh7 {[%clk 0:02:30]} 21. Rfc1 {[%clk 0:01:54]}  axb5 {[%clk 0:02:24]} 22. axb5 {[%clk 0:01:52]}  f6 {[%clk 0:02:13]} 23. exf6 {[%clk 0:01:49]}  Bxf6 {[%clk 0:02:14]} 24. Rxa8 {[%clk 0:01:44]}  Rxa8 {[%clk 0:02:13]} 25. Re1 {[%clk 0:01:39]}  Qd6 {[%clk 0:02:10]} 26. Qe3 {[%clk 0:01:35]}  Ng5 {[%clk 0:02:07]} 27. Ne5 {[%clk 0:01:33]}  Ra3 {[%clk 0:02:02]} 28. Qf4 {[%clk 0:01:28]}  Bg7 {[%clk 0:01:39]} 29. Qg4 {[%clk 0:01:11]}  Ne4 {[%clk 0:01:34]} 30. Bf4 {[%clk 0:00:48]}  h5 {[%clk 0:01:23]} 31. Qc8 {[%clk 0:00:43]}  Qb4 {[%clk 0:01:17]} 32. Rc1 {[%clk 0:00:34]}  Qxd4 {[%clk 0:01:15]} 33. Rf1 {[%clk 0:00:15]}  Nxf2 {[%clk 0:01:08]} 34. Rxf2 {[%clk 0:00:08]}  Ra1+ {[%clk 0:01:08]} 35. Kh2 {[%clk 0:00:08]}  Qxf2 {[%clk 0:01:08]} 36. Nf3 {[%clk 0:00:08]}  Qb2 {[%clk 0:00:31]} 37. Ng5+ {[%clk 0:00:06]}  Kh6 {[%clk 0:00:30]} 38. Qg8 {[%clk 0:00:03]}  Rh1+ {[%clk 0:00:13]} 39. Kxh1 {[%clk 0:00:03]}  Qc1+ {[%clk 0:00:14]} 40. Bxc1 {[%clk 0:00:02]} 1-0


[Site "https://www.chess.com"]

[Event "Titled Tuesday Blitz January 10 Early 2023"]
[White "Volkov, Maksim"]
[Black "Khamdamova, Afruza"]
[WhiteFideId "54123070"]
[BlackFideId "14210444"]
[WhiteElo "2258"]
[BlackElo "2162"]
[Result "1-0"]
[Round "07"]
[TimeControl "180+2"]
[Date "2023.01.10"]
[WhiteClock "0:00:03"]
[BlackClock "0:00:02"]

1. d4 {[%clk 0:02:59]}  Nf6 {[%clk 0:03:00]} 2. c4 {[%clk 0:02:58]}  e6 {[%clk 0:03:00]} 3. g3 {[%clk 0:02:58]}  d5 {[%clk 0:03:00]} 4. Nf3 {[%clk 0:02:57]}  dxc4 {[%clk 0:02:59]} 5. Bg2 {[%clk 0:02:57]}  c5 {[%clk 0:02:59]} 6. O-O {[%clk 0:02:57]}  Nc6 {[%clk 0:02:59]} 7. dxc5 {[%clk 0:02:57]}  Qxd1 {[%clk 0:02:58]} 8. Rxd1 {[%clk 0:02:58]}  Bxc5 {[%clk 0:02:59]} 9. Nbd2 {[%clk 0:02:59]}  c3 {[%clk 0:02:59]} 10. bxc3 {[%clk 0:03:00]}  O-O {[%clk 0:02:59]} 11. Ne1 {[%clk 0:02:59]}  Bd7 {[%clk 0:02:41]} 12. Nd3 {[%clk 0:02:58]}  Be7 {[%clk 0:02:40]} 13. Rb1 {[%clk 0:02:58]}  Rab8 {[%clk 0:02:38]} 14. c4 {[%clk 0:02:57]}  Rfd8 {[%clk 0:02:08]} 15. Nb3 {[%clk 0:02:53]}  b6 {[%clk 0:01:55]} 16. Bb2 {[%clk 0:02:24]}  Rbc8 {[%clk 0:01:45]} 17. Rbc1 {[%clk 0:02:23]}  Ne8 {[%clk 0:01:30]} 18. c5 {[%clk 0:02:13]}  b5 {[%clk 0:01:25]} 19. Ne5 {[%clk 0:02:05]}  Nxe5 {[%clk 0:01:20]} 20. Bxe5 {[%clk 0:02:05]}  f6 {[%clk 0:01:15]} 21. Bb2 {[%clk 0:01:34]}  Bc6 {[%clk 0:00:58]} 22. Rxd8 {[%clk 0:01:28]}  Bxd8 {[%clk 0:00:57]} 23. Bxc6 {[%clk 0:01:27]}  Rxc6 {[%clk 0:00:57]} 24. Nd4 {[%clk 0:01:28]}  Ra6 {[%clk 0:00:45]} 25. Nxb5 {[%clk 0:01:17]}  Rxa2 {[%clk 0:00:41]} 26. Bd4 {[%clk 0:01:15]}  Nc7 {[%clk 0:00:21]} 27. Nc3 {[%clk 0:01:08]}  Rd2 {[%clk 0:00:21]} 28. Be3 {[%clk 0:01:08]}  Rb2 {[%clk 0:00:20]} 29. Kf1 {[%clk 0:01:07]}  Kf7 {[%clk 0:00:19]} 30. Rd1 {[%clk 0:01:05]}  Ke8 {[%clk 0:00:19]} 31. Ne4 {[%clk 0:01:00]}  Nd5 {[%clk 0:00:13]} 32. Bd4 {[%clk 0:00:55]}  Ra2 {[%clk 0:00:12]} 33. c6 {[%clk 0:00:54]}  Bc7 {[%clk 0:00:11]} 34. Nc5 {[%clk 0:00:49]}  Kf7 {[%clk 0:00:11]} 35. Rb1 {[%clk 0:00:46]}  Rd2 {[%clk 0:00:09]} 36. Be3 {[%clk 0:00:40]}  Nxe3+ {[%clk 0:00:09]} 37. fxe3 {[%clk 0:00:41]}  Rc2 {[%clk 0:00:09]} 38. Rb7 {[%clk 0:00:40]}  Rxc5 {[%clk 0:00:09]} 39. Rxc7+ {[%clk 0:00:41]}  Kg6 {[%clk 0:00:09]} 40. Kf2 {[%clk 0:00:29]}  a5 {[%clk 0:00:09]} 41. g4 {[%clk 0:00:22]}  e5 {[%clk 0:00:07]} 42. h4 {[%clk 0:00:22]}  h6 {[%clk 0:00:04]} 43. Kf3 {[%clk 0:00:16]}  a4 {[%clk 0:00:04]} 44. Ke4 {[%clk 0:00:16]}  a3 {[%clk 0:00:04]} 45. h5+ {[%clk 0:00:16]}  Kh7 {[%clk 0:00:04]} 46. Ra7 {[%clk 0:00:11]}  Rxc6 {[%clk 0:00:05]} 47. Rxa3 {[%clk 0:00:12]}  Rc1 {[%clk 0:00:04]} 48. Ra2 {[%clk 0:00:09]}  Rf1 {[%clk 0:00:04]} 49. Ra7 {[%clk 0:00:08]}  Rf2 {[%clk 0:00:03]} 50. Ra2 {[%clk 0:00:07]}  Rg2 {[%clk 0:00:03]} 51. Kf3 {[%clk 0:00:07]}  Rg1 {[%clk 0:00:03]} 52. Rd2 {[%clk 0:00:06]}  Rf1+ {[%clk 0:00:03]} 53. Kg2 {[%clk 0:00:07]}  Re1 {[%clk 0:00:03]} 54. Kf2 {[%clk 0:00:07]}  Ra1 {[%clk 0:00:04]} 55. Rd7 {[%clk 0:00:07]}  Ra4 {[%clk 0:00:04]} 56. Kf3 {[%clk 0:00:07]}  Kg8 {[%clk 0:00:05]} 57. Rc7 {[%clk 0:00:07]}  Rb4 {[%clk 0:00:05]} 58. Ra7 {[%clk 0:00:07]}  Rc4 {[%clk 0:00:05]} 59. Kg3 {[%clk 0:00:07]}  Rb4 {[%clk 0:00:05]} 60. Rd7 {[%clk 0:00:05]}  Rc4 {[%clk 0:00:05]} 61. Kf3 {[%clk 0:00:06]}  Rb4 {[%clk 0:00:06]} 62. Rd8+ {[%clk 0:00:06]}  Kf7 {[%clk 0:00:06]} 63. Rd1 {[%clk 0:00:06]}  Ra4 {[%clk 0:00:06]} 64. Rf1 {[%clk 0:00:06]}  Ra3 {[%clk 0:00:06]} 65. Rb1 {[%clk 0:00:06]}  Ra4 {[%clk 0:00:06]} 66. Rb7+ {[%clk 0:00:06]}  Kg8 {[%clk 0:00:07]} 67. Rc7 {[%clk 0:00:06]}  Ra3 {[%clk 0:00:07]} 68. Ke4 {[%clk 0:00:06]}  Rb3 {[%clk 0:00:05]} 69. Kf5 {[%clk 0:00:05]}  Rxe3 {[%clk 0:00:05]} 70. Kg6 {[%clk 0:00:05]}  Kf8 {[%clk 0:00:05]} 71. Rf7+ {[%clk 0:00:05]}  Ke8 {[%clk 0:00:05]} 72. Kxg7 {[%clk 0:00:05]}  Rxe2 {[%clk 0:00:05]} 73. Rxf6 {[%clk 0:00:06]}  Rg2 {[%clk 0:00:04]} 74. Rg6 {[%clk 0:00:04]}  Kd7 {[%clk 0:00:03]} 75. Kxh6 {[%clk 0:00:02]}  e4 {[%clk 0:00:04]} 76. g5 {[%clk 0:00:02]}  e3 {[%clk 0:00:04]} 77. Rg7+ {[%clk 0:00:02]}  Kd6 {[%clk 0:00:04]} 78. Rg8 {[%clk 0:00:03]}  Kd7 {[%clk 0:00:05]} 79. Rg7+ {[%clk 0:00:03]}  Kd6 {[%clk 0:00:05]} 80. Rg6+ {[%clk 0:00:03]}  Kd5 {[%clk 0:00:05]} 81. Rg8 {[%clk 0:00:03]}  Rg4 {[%clk 0:00:06]} 82. Re8 {[%clk 0:00:04]}  Re4 {[%clk 0:00:06]} 83. Rd8+ {[%clk 0:00:04]}  Ke5 {[%clk 0:00:06]} 84. Rd1 {[%clk 0:00:05]}  e2 {[%clk 0:00:05]} 85. Re1 {[%clk 0:00:05]}  Kf4 {[%clk 0:00:05]} 86. g6 {[%clk 0:00:06]}  Re6 {[%clk 0:00:04]} 87. Kh7 {[%clk 0:00:06]}  Re5 {[%clk 0:00:02]} 88. h6 {[%clk 0:00:06]}  Kg5 {[%clk 0:00:02]} 89. g7 {[%clk 0:00:06]}  Re7 {[%clk 0:00:02]} 90. Kh8 {[%clk 0:00:03]}  Kxh6 {[%clk 0:00:02]} 91. g8=Q {[%clk 0:00:03]} 1-0


[Site "https://www.chess.com"]

[Event "Titled Tuesday Blitz January 10 Early 2023"]
[White "Krienke, Makaio"]
[Black "Korchmar, Vasiliy"]
[WhiteFideId "2038854"]
[BlackFideId "24131750"]
[WhiteElo "2115"]
[BlackElo "2438"]
[Result "1-0"]
[Round "07"]
[TimeControl "180+2"]
[Date "2023.01.10"]
[WhiteClock "0:00:16"]
[BlackClock "0:00:09"]

1. e4 {[%clk 0:03:00]}  c5 {[%clk 0:02:45]} 2. Nf3 {[%clk 0:03:00]}  d6 {[%clk 0:02:43]} 3. d4 {[%clk 0:03:01]}  cxd4 {[%clk 0:02:43]} 4. Nxd4 {[%clk 0:03:01]}  Nf6 {[%clk 0:02:43]} 5. Nc3 {[%clk 0:03:02]}  Nc6 {[%clk 0:02:43]} 6. Bg5 {[%clk 0:02:59]}  g6 {[%clk 0:02:42]} 7. Qd2 {[%clk 0:02:57]}  Bg7 {[%clk 0:02:40]} 8. Nb3 {[%clk 0:02:36]}  h6 {[%clk 0:02:38]} 9. Be3 {[%clk 0:02:35]}  Ng4 {[%clk 0:02:38]} 10. Bf4 {[%clk 0:02:33]}  g5 {[%clk 0:02:38]} 11. Bg3 {[%clk 0:02:31]}  a5 {[%clk 0:02:39]} 12. f3 {[%clk 0:02:27]}  Nge5 {[%clk 0:02:37]} 13. Bf2 {[%clk 0:02:22]}  a4 {[%clk 0:02:37]} 14. Nd4 {[%clk 0:02:22]}  a3 {[%clk 0:02:38]} 15. b3 {[%clk 0:02:19]}  O-O {[%clk 0:02:38]} 16. Be2 {[%clk 0:02:14]}  Qa5 {[%clk 0:02:37]} 17. O-O {[%clk 0:02:11]}  Bd7 {[%clk 0:02:30]} 18. Rad1 {[%clk 0:02:11]}  Nb4 {[%clk 0:02:23]} 19. Kh1 {[%clk 0:02:05]}  Rfc8 {[%clk 0:02:23]} 20. Be1 {[%clk 0:01:36]}  Nec6 {[%clk 0:02:06]} 21. Nxc6 {[%clk 0:01:29]}  bxc6 {[%clk 0:01:39]} 22. Bc4 {[%clk 0:00:59]}  Qe5 {[%clk 0:01:18]} 23. h3 {[%clk 0:00:38]}  Qxc3 {[%clk 0:01:13]} 24. Qxc3 {[%clk 0:00:39]}  Bxc3 {[%clk 0:01:13]} 25. Bxc3 {[%clk 0:00:40]}  Nxa2 {[%clk 0:01:14]} 26. Bd2 {[%clk 0:00:40]}  c5 {[%clk 0:01:15]} 27. c3 {[%clk 0:00:39]}  Be6 {[%clk 0:00:55]} 28. Ra1 {[%clk 0:00:33]}  Bxc4 {[%clk 0:00:48]} 29. bxc4 {[%clk 0:00:34]}  Nxc3 {[%clk 0:00:49]} 30. Bxc3 {[%clk 0:00:34]}  Rcb8 {[%clk 0:00:48]} 31. Rfb1 {[%clk 0:00:35]}  Rxb1+ {[%clk 0:00:45]} 32. Rxb1 {[%clk 0:00:36]}  a2 {[%clk 0:00:46]} 33. Ra1 {[%clk 0:00:36]}  Ra4 {[%clk 0:00:43]} 34. Bd2 {[%clk 0:00:31]}  Kg7 {[%clk 0:00:33]} 35. Kg1 {[%clk 0:00:32]}  Kf6 {[%clk 0:00:34]} 36. Kf1 {[%clk 0:00:31]}  Ke5 {[%clk 0:00:34]} 37. Bc3+ {[%clk 0:00:31]}  Kf4 {[%clk 0:00:34]} 38. Kf2 {[%clk 0:00:26]}  g4 {[%clk 0:00:24]} 39. g3+ {[%clk 0:00:26]}  Kg5 {[%clk 0:00:25]} 40. hxg4 {[%clk 0:00:25]}  Kg6 {[%clk 0:00:24]} 41. Ke3 {[%clk 0:00:24]}  Rxc4 {[%clk 0:00:24]} 42. Kd3 {[%clk 0:00:24]}  Ra4 {[%clk 0:00:24]} 43. Kc2 {[%clk 0:00:24]}  e6 {[%clk 0:00:12]} 44. Kb3 {[%clk 0:00:24]}  Ra7 {[%clk 0:00:11]} 45. Rxa2 {[%clk 0:00:24]}  c4+ {[%clk 0:00:07]} 46. Kb2 {[%clk 0:00:24]}  Rb7+ {[%clk 0:00:08]} 47. Kc2 {[%clk 0:00:24]}  d5 {[%clk 0:00:09]} 48. exd5 {[%clk 0:00:23]}  exd5 {[%clk 0:00:10]} 49. Ra5 {[%clk 0:00:21]}  Rd7 {[%clk 0:00:10]} 50. Bd4 {[%clk 0:00:21]}  f5 {[%clk 0:00:09]} 51. Ra6+ {[%clk 0:00:19]}  Kg5 {[%clk 0:00:09]} 52. Be3+ {[%clk 0:00:17]}  f4 {[%clk 0:00:09]} 53. Bxf4# {[%clk 0:00:16]} 1-0


[Site "https://www.chess.com"]

[Event "Titled Tuesday Blitz January 10 Early 2023"]
[White "Tologon tegin, Semetei"]
[Black "Kuznetsova, Olga"]
[WhiteFideId "13800574"]
[BlackFideId "4191323"]
[WhiteElo "2372"]
[BlackElo "2142"]
[Result "1-0"]
[Round "07"]
[TimeControl "180+2"]
[Date "2023.01.10"]
[WhiteClock "0:00:44"]
[BlackClock "0:00:20"]

1. e4 {[%clk 0:02:48]}  e5 {[%clk 0:02:59]} 2. Nc3 {[%clk 0:02:45]}  Bc5 {[%clk 0:02:58]} 3. Nge2 {[%clk 0:02:42]}  d6 {[%clk 0:02:58]} 4. g3 {[%clk 0:02:42]}  Nf6 {[%clk 0:02:56]} 5. Bg2 {[%clk 0:02:42]}  O-O {[%clk 0:02:55]} 6. O-O {[%clk 0:02:42]}  a5 {[%clk 0:02:55]} 7. a4 {[%clk 0:02:41]}  c6 {[%clk 0:02:54]} 8. d3 {[%clk 0:02:42]}  Nbd7 {[%clk 0:02:49]} 9. h3 {[%clk 0:02:41]}  Re8 {[%clk 0:02:49]} 10. Kh2 {[%clk 0:02:42]}  Nf8 {[%clk 0:02:49]} 11. f4 {[%clk 0:02:41]}  Ng6 {[%clk 0:02:44]} 12. f5 {[%clk 0:02:40]}  Nf8 {[%clk 0:02:44]} 13. g4 {[%clk 0:02:40]}  Bb6 {[%clk 0:01:58]} 14. Ng3 {[%clk 0:02:26]}  Bc7 {[%clk 0:01:56]} 15. g5 {[%clk 0:02:21]}  N6d7 {[%clk 0:01:56]} 16. h4 {[%clk 0:02:18]}  f6 {[%clk 0:01:43]} 17. Rg1 {[%clk 0:02:07]}  Nb6 {[%clk 0:01:33]} 18. Nh5 {[%clk 0:02:02]}  g6 {[%clk 0:01:28]} 19. Nxf6+ {[%clk 0:02:00]}  Kh8 {[%clk 0:01:24]} 20. Nxe8 {[%clk 0:01:55]}  Qxe8 {[%clk 0:01:24]} 21. f6 {[%clk 0:01:52]}  Be6 {[%clk 0:01:20]} 22. Qf3 {[%clk 0:01:52]}  Qf7 {[%clk 0:01:18]} 23. Ne2 {[%clk 0:01:38]}  d5 {[%clk 0:01:17]} 24. Ng3 {[%clk 0:01:35]}  Rd8 {[%clk 0:01:15]} 25. b3 {[%clk 0:01:30]}  Nc8 {[%clk 0:01:15]} 26. Be3 {[%clk 0:01:21]}  Nd6 {[%clk 0:01:11]} 27. Bf1 {[%clk 0:01:11]}  Nd7 {[%clk 0:01:04]} 28. Be2 {[%clk 0:01:10]}  b6 {[%clk 0:01:02]} 29. Kg2 {[%clk 0:01:08]}  Nc5 {[%clk 0:01:02]} 30. Rh1 {[%clk 0:01:06]}  dxe4 {[%clk 0:01:01]} 31. dxe4 {[%clk 0:01:05]}  Kg8 {[%clk 0:00:58]} 32. Bxc5 {[%clk 0:01:05]}  bxc5 {[%clk 0:00:57]} 33. h5 {[%clk 0:01:04]}  c4 {[%clk 0:00:36]} 34. hxg6 {[%clk 0:01:01]}  Qxg6 {[%clk 0:00:37]} 35. Qe3 {[%clk 0:00:57]}  Nf7 {[%clk 0:00:31]} 36. Bh5 {[%clk 0:00:55]}  Bb6 {[%clk 0:00:20]} 37. Qc1 {[%clk 0:00:44]} 1-0


[Site "https://www.chess.com"]

[Event "Titled Tuesday Blitz January 10 Early 2023"]
[White "Kobalia, Mikhail"]
[Black "Estrada Nieto, Julian"]
[WhiteFideId "4119150"]
[BlackFideId "5101018"]
[WhiteElo "2578"]
[BlackElo "2215"]
[Result "1-0"]
[Round "07"]
[TimeControl "180+2"]
[Date "2023.01.10"]
[WhiteClock "0:00:13"]
[BlackClock "0:00:02"]

1. e4 {[%clk 0:03:00]}  e5 {[%clk 0:02:59]} 2. Nf3 {[%clk 0:03:00]}  Nc6 {[%clk 0:03:00]} 3. g3 {[%clk 0:02:57]}  Nf6 {[%clk 0:02:57]} 4. d3 {[%clk 0:02:57]}  d5 {[%clk 0:02:57]} 5. exd5 {[%clk 0:02:57]}  Nxd5 {[%clk 0:02:46]} 6. Bg2 {[%clk 0:02:57]}  Bc5 {[%clk 0:02:40]} 7. O-O {[%clk 0:02:56]}  O-O {[%clk 0:02:40]} 8. Re1 {[%clk 0:02:56]}  Bg4 {[%clk 0:02:34]} 9. h3 {[%clk 0:02:54]}  Bh5 {[%clk 0:02:34]} 10. Nbd2 {[%clk 0:02:49]}  f5 {[%clk 0:02:28]} 11. Nc4 {[%clk 0:02:41]}  e4 {[%clk 0:01:56]} 12. dxe4 {[%clk 0:02:40]}  fxe4 {[%clk 0:01:56]} 13. Rxe4 {[%clk 0:02:40]}  Ndb4 {[%clk 0:01:38]} 14. Bf4 {[%clk 0:01:32]}  Qxd1+ {[%clk 0:01:27]} 15. Rxd1 {[%clk 0:01:33]}  Bxf3 {[%clk 0:01:10]} 16. Bxf3 {[%clk 0:01:32]}  g5 {[%clk 0:01:10]} 17. c3 {[%clk 0:01:18]}  gxf4 {[%clk 0:00:57]} 18. cxb4 {[%clk 0:01:15]}  fxg3 {[%clk 0:00:48]} 19. bxc5 {[%clk 0:01:15]}  Rxf3 {[%clk 0:00:47]} 20. Rg4+ {[%clk 0:01:15]}  Kf8 {[%clk 0:00:38]} 21. Rxg3 {[%clk 0:01:15]}  Rf5 {[%clk 0:00:27]} 22. Rd7 {[%clk 0:01:13]}  Re8 {[%clk 0:00:22]} 23. Ne3 {[%clk 0:00:58]}  Rxc5 {[%clk 0:00:18]} 24. Rxh7 {[%clk 0:00:58]}  Ne5 {[%clk 0:00:10]} 25. Kg2 {[%clk 0:00:53]}  Nf7 {[%clk 0:00:07]} 26. Rf3 {[%clk 0:00:46]}  Re7 {[%clk 0:00:06]} 27. Nf5 {[%clk 0:00:45]}  Rd7 {[%clk 0:00:04]} 28. Nh6 {[%clk 0:00:44]}  Rg5+ {[%clk 0:00:01]} 29. Kh2 {[%clk 0:00:43]}  Rg7 {[%clk 0:00:02]} 30. Rh8+ {[%clk 0:00:35]}  Ke7 {[%clk 0:00:02]} 31. Nf5+ {[%clk 0:00:35]}  Kf6 {[%clk 0:00:02]} 32. Nxg7+ {[%clk 0:00:35]}  Kxg7 {[%clk 0:00:03]} 33. Rb8 {[%clk 0:00:32]}  c5 {[%clk 0:00:03]} 34. Ra3 {[%clk 0:00:27]}  a6 {[%clk 0:00:02]} 35. Rb3 {[%clk 0:00:26]}  Nd6 {[%clk 0:00:02]} 36. Rd3 {[%clk 0:00:25]}  Kf7 {[%clk 0:00:02]} 37. Rh8 {[%clk 0:00:24]}  Ke6 {[%clk 0:00:01]} 38. Rh6+ {[%clk 0:00:24]}  Ke5 {[%clk 0:00:02]} 39. Rd1 {[%clk 0:00:20]}  c4 {[%clk 0:00:02]} 40. h4 {[%clk 0:00:20]}  b5 {[%clk 0:00:01]} 41. a3 {[%clk 0:00:19]}  a5 {[%clk 0:00:01]} 42. Rh5+ {[%clk 0:00:19]}  Ke4 {[%clk 0:00:01]} 43. Rxb5 {[%clk 0:00:18]}  Nxb5 {[%clk 0:00:01]} 44. Rxd7 {[%clk 0:00:17]}  Nd4 {[%clk 0:00:02]} 45. h5 {[%clk 0:00:16]}  Nf3+ {[%clk 0:00:01]} 46. Kg3 {[%clk 0:00:16]}  Ne5 {[%clk 0:00:02]} 47. Rc7 {[%clk 0:00:14]}  Kf5 {[%clk 0:00:02]} 48. Rc5 {[%clk 0:00:13]} 1-0


[Site "https://www.chess.com"]

[Event "Titled Tuesday Blitz January 10 Early 2023"]
[White "Kukhmazov, Arsen"]
[Black "Tomaszewski, Kacper"]
[WhiteFideId "24108260"]
[BlackFideId "1127373"]
[WhiteElo "2512"]
[BlackElo "2313"]
[Result "1-0"]
[Round "07"]
[TimeControl "180+2"]
[Date "2023.01.10"]
[WhiteClock "0:02:23"]
[BlackClock "0:01:20"]

1. d4 {[%clk 0:02:46]}  Nf6 {[%clk 0:02:58]} 2. c4 {[%clk 0:02:46]}  g6 {[%clk 0:02:59]} 3. g3 {[%clk 0:02:46]}  Bg7 {[%clk 0:02:54]} 4. Bg2 {[%clk 0:02:46]}  d5 {[%clk 0:02:55]} 5. cxd5 {[%clk 0:02:47]}  Nxd5 {[%clk 0:02:55]} 6. Nf3 {[%clk 0:02:47]}  O-O {[%clk 0:02:54]} 7. O-O {[%clk 0:02:48]}  c5 {[%clk 0:02:54]} 8. dxc5 {[%clk 0:02:42]}  Na6 {[%clk 0:02:52]} 9. e4 {[%clk 0:02:35]}  Nf6 {[%clk 0:02:44]} 10. e5 {[%clk 0:02:35]}  Nd7 {[%clk 0:02:38]} 11. e6 {[%clk 0:02:35]}  fxe6 {[%clk 0:02:32]} 12. Qe2 {[%clk 0:02:35]}  Ndxc5 {[%clk 0:02:27]} 13. Rd1 {[%clk 0:02:35]}  Qb6 {[%clk 0:02:24]} 14. Nc3 {[%clk 0:02:36]}  e5 {[%clk 0:02:13]} 15. Be3 {[%clk 0:02:34]}  Bg4 {[%clk 0:02:08]} 16. h3 {[%clk 0:02:34]}  Bxf3 {[%clk 0:02:04]} 17. Bxf3 {[%clk 0:02:35]}  e4 {[%clk 0:01:54]} 18. Nxe4 {[%clk 0:02:32]}  Qxb2 {[%clk 0:01:49]} 19. Nxc5 {[%clk 0:02:30]}  Rxf3 {[%clk 0:01:35]} 20. Qxf3 {[%clk 0:02:27]}  Nxc5 {[%clk 0:01:24]} 21. Bxc5 {[%clk 0:02:28]}  Rf8 {[%clk 0:01:20]} 22. Qd5+ {[%clk 0:02:26]}  Kh8 {[%clk 0:01:20]} 23. Bd4 {[%clk 0:02:23]} 1-0


[Site "https://www.chess.com"]